bitfinex/quotes_SOLUSD_20240921
["timestamp","ask_amount","ask_price","bid_price","bid_amount"]
[1726883111332,0.25098,146.33,146.28,0.3451664]
[1726883113159,7.06717455,146.32,146.28,0.3451664]
[1726883113326,1.70888324,146.31,146.28,0.3451664]
[1726883113523,8.77544688,146.34,146.28,0.3451664]
[1726883113738,0.25098,146.33,146.28,0.3451664]
[1726883114051,0.25098,146.31,146.28,0.3451664]
[1726883114223,1.7093587,146.3,146.28,0.3451664]
[1726883115328,41.06,146.32,146.28,0.3451664]
[1726883115618,1.70921744,146.31,146.28,0.3451664]
[1726883116652,0.12549,146.32,146.28,0.3451664]
[1726883117358,1.8346526,146.32,146.28,0.3451664]
[1726883117664,0.12549,146.32,146.28,0.3451664]
[1726883117834,1.83465243,146.32,146.28,0.3451664]
[1726883118242,0.12549,146.32,146.28,0.3451664]
[1726883118646,1.83465275,146.32,146.28,0.3451664]
[1726883119038,0.12549,146.31,146.28,0.3451664]
[1726883119358,1.70930464,146.3,146.28,0.3451664]
[1726883121069,0.25098,146.29,146.28,0.3451664]
[1726883121249,86.79719728,146.29,146.28,0.3451664]
[1726883122063,85.087864,146.29,146.28,0.3451664]
[1726883123151,61.31098,146.29,146.28,0.3451664]
[1726883123772,0.25098,146.29,146.28,0.3451664]
[1726883123944,27.19590707,146.29,146.28,0.3451664]
[1726883124148,28.90559274,146.29,146.28,0.3451664]
[1726883124473,93.74247674,146.29,146.28,0.3451664]
[1726883124969,92.03279107,146.29,146.28,0.3451664]
[1726883125367,92.15828107,146.29,146.28,0.3451664]
[1726883125957,93.86808241,146.29,146.28,0.3451664]
[1726883126141,92.15828107,146.29,146.28,0.3451664]
[1726883126343,27.07041707,146.29,146.28,0.3451664]
[1726883126768,28.77991695,146.29,146.28,0.3451664]
[1726883127355,69.83991695,146.29,146.28,0.3451664]
[1726883127556,93.86778095,146.29,146.28,0.3451664]
[1726883128468,92.15828107,146.29,146.28,0.3451664]
[1726883128873,98.99398107,146.29,146.28,0.3451664]
[1726883130252,92.15828107,146.29,146.28,0.3451664]
[1726883131572,93.86808006,146.29,146.28,0.3451664]
[1726883133355,100.70378006,146.29,146.28,0.3451664]
[1726883133684,91.924064,146.28,146.23,0.3141043]
[1726883133984,0.25098,146.26,146.23,0.3141043]
[1726883134182,1.71003688,146.25,146.23,0.3141043]
[1726883134354,8.83754422,146.25,146.23,0.3141043]
[1726883134775,0.25098,146.24,146.23,0.3141043]
[1726883136476,24.027864,146.24,146.23,0.3141043]
[1726883138092,65.087864,146.24,146.23,0.3141043]
[1726883141566,41.31098,146.24,146.23,0.3141043]
[1726883142072,41.06,146.24,146.23,0.3141043]
[1726883142471,42.77016976,146.24,146.23,0.3141043]
[1726883143376,41.31098,146.24,146.23,0.3141043]
[1726883143774,61.31098,146.24,146.23,0.3141043]
[1726883144664,85.087864,146.24,146.23,0.3141043]
[1726883151577,86.79835984,146.24,146.23,0.3141043]
[1726883151992,107.32835984,146.24,146.23,0.3141043]
[1726883152202,20.25098,146.21,146.19,0.3451664]
[1726883152386,1.9615162,146.2,146.19,0.3451664]
[1726883152995,7.38070567,146.2,146.19,0.3451664]
[1726883153478,9.09129044,146.2,146.19,0.3451664]
[1726883154892,73.92817444,146.2,146.19,0.3451664]
[1726883156296,93.92817444,146.2,146.19,0.3451664]
[1726883157503,92.21758967,146.2,146.19,0.3451664]
[1726883157697,93.92851819,146.2,146.19,0.3451664]
[1726883158417,92.21758967,146.2,146.19,0.3451664]
[1726883158913,93.92851621,146.2,146.19,0.3451664]
[1726883159093,92.21758967,146.2,146.19,0.3451664]
[1726883159598,114.45851376,146.2,146.19,0.3451664]
[1726883160101,92.21758967,146.2,146.19,0.3451664]
[1726883160598,93.92851971,146.2,146.19,0.3451664]
[1726883160815,121.29841971,146.2,146.19,0.3451664]
[1726883160996,121.29841971,146.2,146.14,0.3141043]
[1726883160997,85.087864,146.17,146.14,0.3141043]
[1726883161190,0.25098,146.15,146.14,0.3141043]
[1726883162722,41.06,146.19,146.14,0.3141043]
[1726883162897,20.0,146.21,146.14,0.3141043]
[1726883163097,6.838,146.24,146.14,0.3141043]
[1726883163292,7.1265799,146.18,146.14,0.3141043]
[1726883163522,6.838,146.24,146.14,0.3141043]
[1726883163695,41.06,146.23,146.14,0.3141043]
[1726883163896,7.13135903,146.18,146.14,0.3141043]
[1726883164202,47.8986,146.23,146.14,0.3141043]
[1726883164400,7.13141301,146.18,146.14,0.3141043]
[1726883164602,24.027864,146.21,146.14,0.3141043]
[1726883164802,0.25098,146.19,146.14,0.3141043]
[1726883165008,7.13340569,146.18,146.14,0.3141043]
[1726883165195,1.71078195,146.17,146.14,0.3141043]
[1726883166323,7.13340569,146.18,146.14,0.3141043]
[1726883166621,7.13340569,146.18,146.16,12.57497136]
[1726883166805,41.06,146.24,146.17,12.57497136]
[1726883166806,20.0,146.23,146.17,12.57497136]
[1726883167004,7.13517123,146.21,146.16,12.57497136]
[1726883167214,1.7104116,146.2,146.15,34.78557136]
[1726883167407,1.7104116,146.2,146.15,22.2106]
[1726883168033,23.902374,146.19,146.14,0.3141043]
[1726883168318,0.12549,146.17,146.14,0.3141043]
[1726883168525,43.902374,146.2,146.14,0.3141043]
[1726883168900,0.12549,146.19,146.14,0.3141043]
[1726883169113,0.12549,146.18,146.14,0.3141043]
[1726883169318,1.71081907,146.17,146.14,0.3141043]
[1726883170311,0.12549,146.18,146.14,0.3141043]
[1726883175520,1.8363065,146.18,146.14,0.3141043]
[1726883175907,0.12549,146.18,146.14,0.3141043]
[1726883177327,7.13731159,146.17,146.14,0.3141043]
[1726883178622,1.18786873,146.27,146.16,18.87077136]
[1726883178816,1.18786873,146.27,146.18,12.57497136]
[1726883179041,7.13370029,146.25,146.19,12.57497136]
[1726883179240,7.13370029,146.25,146.2,15.8892]
[1726883180517,0.12549,146.24,146.2,15.8892]
[1726883181328,1.83539589,146.24,146.2,15.8892]
[1726883181544,1.70990589,146.24,146.2,15.8892]
[1726883181718,0.12549,146.23,146.16,6.2958]
[1726883182039,0.12549,146.23,146.16,22.6588]
[1726883182040,0.12549,146.21,146.16,22.6588]
[1726883182237,1.71048078,146.2,146.16,22.6588]
[1726883182536,0.12549,146.21,146.16,22.6588]
[1726883182842,25.73840925,146.21,146.14,0.3141043]
[1726883183040,20.0,146.2,146.14,0.3141043]
[1726883183230,1.96179317,146.19,146.14,0.3141043]
[1726883184238,0.25098,146.17,146.14,0.3141043]
[1726883184619,0.25098,146.15,146.14,0.3141043]
[1726883185050,20.0,146.16,146.14,0.3141043]
[1726883185622,1.71109409,146.15,146.14,0.3141043]
[1726883185846,1.96207409,146.15,146.14,0.3141043]
[1726883186029,0.25098,146.15,146.14,0.3141043]
[1726883187043,1.96224496,146.15,146.14,0.3141043]
[1726883187547,0.12549,146.15,146.14,0.3141043]
[1726883187726,0.25098,146.16,146.14,0.3141043]
[1726883187929,20.0,146.19,146.14,0.3141043]
[1726883188127,20.0,146.17,146.14,0.3141043]
[1726883188448,1.71094514,146.16,146.14,0.3141043]
[1726883188632,22.0421,146.24,146.14,0.3141043]
[1726883188948,42.77063207,146.23,146.15,22.9346]
[1726883189547,48.18666924,146.22,146.15,22.9346]
[1726883189726,1.71059691,146.21,146.15,22.9346]
[1726883189930,0.12549,146.2,146.15,22.9346]
[1726883190223,1.7105967,146.19,146.15,22.9346]
[1726883190721,0.12549,146.2,146.15,22.9346]
[1726883190924,20.12549,146.21,146.15,22.9346]
[1726883191666,7.12666924,146.22,146.15,22.9346]
[1726883196172,7.12666924,146.22,146.16,23.776884]
[1726883196346,7.12666924,146.22,146.17,1.36812265]
[1726883196544,20.0,146.26,146.16,43.4582044]
[1726883197065,7.12484188,146.24,146.2,6.5481]
[1726883197263,0.2483004,146.3,146.21,1.3677041]
[1726883197558,7.12167938,146.28,146.2,6.5481]
[1726883197761,1.70961765,146.27,146.2,6.5481]
[1726883198066,7.12167938,146.28,146.2,6.5481]
[1726883198950,7.12167938,146.28,146.2,26.2294204]
[1726883199682,7.12167938,146.28,146.21,25.14457556]
[1726883199846,0.2483004,146.3,146.23,23.776884]
[1726883200370,7.36847987,146.3,146.23,23.776884]
[1726883202478,7.36847987,146.3,146.25,23.776884]
[1726883202654,7.36847987,146.3,146.25,25.14416964]
[1726883203552,1.70912866,146.29,146.24,6.5481]
[1726883208176,1.70912866,146.29,146.22,15.3968]
[1726883208177,0.25098,146.28,146.22,15.3968]
[1726883208981,0.25098,146.26,146.22,15.3968]
[1726883209165,1.70981807,146.25,146.22,15.3968]
[1726883210054,1.96078774,146.28,146.2,6.5481]
[1726883210397,0.25098,146.26,146.19,15.3968]
[1726883210579,0.25098,146.24,146.19,15.3968]
[1726883210889,1.71011427,146.23,146.16,21.9441]
[1726883211175,24.027864,146.25,146.16,21.9441]
[1726883211664,25.73807568,146.25,146.16,21.9441]
[1726883212981,0.25098,146.25,146.16,21.9441]
[1726883214659,0.25098,146.23,146.16,21.9441]
[1726883214864,1.71023452,146.22,146.16,21.9441]
[1726883215068,0.25098,146.23,146.16,21.9441]
[1726883217061,57.1874,146.26,146.17,1.36816918]
[1726883217260,0.25098,146.25,146.17,1.36816918]
[1726883217667,0.12549,146.25,146.18,23.776884]
[1726883217893,7.11282658,146.27,146.19,1.3679889]
[1726883218056,7.11282658,146.27,146.17,23.776884]
[1726883218262,1.70980357,146.26,146.17,23.776884]
[1726883219073,0.25098,146.25,146.17,23.776884]
[1726883219274,1.71005722,146.24,146.17,23.776884]
[1726883220575,0.25098,146.23,146.16,21.9441]
[1726883220880,1.71033151,146.22,146.16,21.9441]
[1726883221586,1.71033151,146.22,146.16,15.639]
[1726883221797,0.25098,146.21,146.16,15.639]
[1726883222094,0.25098,146.21,146.14,0.3141043]
[1726883222474,0.25098,146.22,146.14,0.3141043]
[1726883223993,0.25098,146.22,146.15,23.776884]
[1726883224667,0.25098,146.2,146.14,0.3141043]
[1726883224878,1.71062635,146.19,146.14,0.3141043]
[1726883225099,0.25098,146.18,146.14,0.3141043]
[1726883225272,1.71094369,146.17,146.14,0.3141043]
[1726883226071,0.25098,146.17,146.14,0.3141043]
[1726883227191,22.6826,146.24,146.14,0.3141043]
[1726883227392,1.71030158,146.22,146.15,16.3126]
[1726883227891,22.6826,146.24,146.15,16.3126]
[1726883228996,1.71024452,146.22,146.15,16.3126]
[1726883229200,0.25098,146.21,146.15,16.3126]
[1726883229384,0.25098,146.21,146.14,6.8038043]
[1726883229385,1.71050514,146.2,146.14,6.8038043]
[1726883230304,0.25098,146.19,146.14,6.8038043]
[1726883230675,0.25098,146.19,146.14,0.3141043]
[1726883231394,7.34009347,146.19,146.14,0.3141043]
[1726883231590,1.71066527,146.18,146.14,0.3141043]
[1726883232190,7.34009347,146.19,146.14,0.3141043]
[1726883232695,1.71064598,146.18,146.14,0.3141043]
[1726883233085,7.34009347,146.19,146.14,0.3141043]
[1726883235201,7.08911347,146.19,146.14,24.0909883]
[1726883235911,1.71045415,146.18,146.14,24.0909883]
[1726883236096,7.08911347,146.19,146.14,24.0909883]
[1726883236403,1.7104676,146.18,146.14,0.3141043]
[1726883236600,1.71074765,146.17,146.14,0.3141043]
[1726883239607,7.08911347,146.19,146.14,0.3141043]
[1726883241088,7.08911347,146.19,146.14,25.45958444]
[1726883245285,7.08911347,146.19,146.14,24.0909883]
[1726883245618,1.71045049,146.18,146.14,24.0909883]
[1726883245786,1.71045049,146.18,146.14,0.3141043]
[1726883249493,0.12549,146.17,146.14,0.3141043]
[1726883249694,0.25098,146.17,146.14,0.3141043]
[1726883249902,7.11381142,146.16,146.14,0.3141043]
[1726883252415,1.71094053,146.15,146.14,0.3141043]
[1726883252994,7.11381142,146.16,146.14,0.3141043]
[1726883253596,8.82475188,146.16,146.14,0.3141043]
[1726883254009,7.11381142,146.16,146.14,0.3141043]
[1726883254320,1.71103143,146.15,146.14,0.3141043]
[1726883254919,7.11381142,146.16,146.14,0.3141043]
[1726883255291,1.71094109,146.15,146.14,0.3141043]
[1726883256617,7.11381142,146.16,146.14,0.3141043]
[1726883257999,20.0,146.2,146.14,0.3141043]
[1726883258199,7.10915715,146.18,146.14,0.3141043]
[1726883258507,1.71081646,146.17,146.14,0.3141043]
[1726883261818,7.10915715,146.18,146.14,0.3141043]
[1726883263214,57.4265,146.24,146.16,36.37158025]
[1726883263425,41.06,146.24,146.16,36.37158025]
[1726883263604,7.10731707,146.23,146.17,23.776884]
[1726883263809,7.10731707,146.23,146.17,36.37158025]
[1726883264012,7.10731707,146.23,146.16,23.776884]
[1726883264195,7.10731707,146.23,146.17,1.36800834]
[1726883264717,7.10731707,146.23,146.16,23.776884]
[1726883264910,7.10731707,146.23,146.18,23.776884]
[1726883265829,1.70991923,146.22,146.18,23.776884]
[1726883266123,1.70991923,146.22,146.15,41.74218287]
[1726883266424,7.10731707,146.23,146.16,23.776884]
[1726883266927,1.71001283,146.22,146.16,23.776884]
[1726883272114,1.71018527,146.21,146.15,22.0833]
[1726883272421,0.25098,146.22,146.15,22.0833]
[1726883273319,1.7104615,146.21,146.15,15.4793]
[1726883273836,41.31098,146.22,146.15,15.4793]
[1726883274128,7.09460505,146.2,146.15,15.4793]
[1726883274514,7.09460505,146.2,146.14,0.3141043]
[1726883275136,1.71052588,146.19,146.14,0.3141043]
[1726883275315,7.09460505,146.2,146.14,0.3141043]
[1726883275635,1.7105956,146.19,146.14,0.3141043]
[1726883276535,0.25098,146.19,146.14,0.3141043]
[1726883277233,7.09460505,146.2,146.14,0.3141043]
[1726883277818,1.71059541,146.19,146.14,0.3141043]
[1726883278335,7.09460505,146.2,146.14,0.3141043]
[1726883278916,7.09460505,146.2,146.13,23.5909883]
[1726883279611,1.71059684,146.19,146.11,6.8582664]
[1726883279914,0.25098,146.19,146.11,6.8582664]
[1726883280114,0.12549,146.19,146.12,1.36856206]
[1726883280332,48.15460505,146.2,146.11,6.8582664]
[1726883280817,1.71059189,146.19,146.11,6.8582664]
[1726883281123,1.71059189,146.19,146.12,23.276884]
[1726883282139,48.15460505,146.2,146.12,23.276884]
[1726883283537,7.09460505,146.2,146.12,23.276884]
[1726883283717,7.09460505,146.2,146.13,1.36847509]
[1726883284037,7.09460505,146.2,146.17,19.78437287]
[1726883284248,0.2483004,146.26,146.18,25.14473017]
[1726883284452,7.33477352,146.26,146.18,25.14473017]
[1726883284822,7.33477352,146.26,146.18,23.776884]
[1726883285466,1.70987836,146.25,146.18,23.776884]
[1726883285949,0.12549,146.24,146.14,16.3081]
[1726883286153,0.12549,146.24,146.15,23.776884]
[1726883286317,0.12549,146.24,146.16,1.36815326]
[1726883286638,55.23227352,146.26,146.16,1.36815326]
[1726883286639,0.12549,146.25,146.16,1.36815326]
[1726883287142,0.25098,146.25,146.15,23.776884]
[1726883287349,0.22081,146.25,146.15,23.776884]
[1726883288447,42.99100579,146.25,146.15,23.776884]
[1726883288743,0.12549,146.23,146.15,23.776884]
[1726883289118,15.93909,146.21,146.1,35.96698287]
[1726883289415,1.71054357,146.2,146.1,35.96698287]
[1726883289823,15.93909,146.21,146.1,35.96698287]
[1726883290027,15.8136,146.21,146.12,1.36843421]
[1726883290239,15.8136,146.21,146.12,21.02731708]
[1726883290542,15.8136,146.21,146.13,23.776884]
[1726883291227,1.71036518,146.2,146.13,23.776884]
[1726883292334,1.71036518,146.2,146.11,0.3451664]
[1726883292523,0.25098,146.19,146.11,0.3451664]
[1726883292731,0.12549,146.19,146.11,0.3451664]
[1726883292926,0.25098,146.2,146.11,0.3451664]
[1726883293146,0.25098,146.18,146.11,0.3451664]
[1726883293341,1.71079865,146.17,146.11,0.3451664]
[1726883293744,0.12549,146.17,146.11,0.3451664]
[1726883294261,6.8418,146.16,146.11,0.3451664]
[1726883294419,1.71116945,146.15,146.11,0.3451664]
[1726883294624,0.12549,146.17,146.11,0.3451664]
[1726883294943,7.08917912,146.15,146.11,0.3451664]
[1726883295121,1.71099469,146.14,146.11,0.3451664]
[1726883295322,7.08917912,146.15,146.11,0.3451664]
[1726883297846,6.71789,146.18,146.11,0.3451664]
[1726883298042,7.08230858,146.17,146.11,0.3451664]
[1726883300855,7.08230858,146.17,146.12,23.776884]
[1726883301035,1.71066831,146.16,146.11,0.3451664]
[1726883301529,7.08230858,146.17,146.11,0.3451664]
[1726883301856,8.79297318,146.17,146.11,0.3451664]
[1726883304732,7.08230858,146.17,146.11,0.3451664]
[1726883307555,1.71080371,146.16,146.11,0.3451664]
[1726883308043,7.08230858,146.17,146.11,0.3451664]
[1726883308536,1.71080492,146.16,146.11,0.3451664]
[1726883308743,48.26779858,146.17,146.11,0.3451664]
[1726883309062,16.0993,146.15,146.11,0.3451664]
[1726883309242,1.71114362,146.14,146.11,0.3451664]
[1726883311141,16.0993,146.15,146.11,0.3451664]
[1726883311534,1.71112191,146.14,146.11,0.3451664]
[1726883311859,16.0993,146.15,146.11,0.3451664]
[1726883312333,0.25098,146.14,146.11,0.3451664]
[1726883313451,6.48198,146.12,146.11,0.3451664]
[1726883314353,8.19351779,146.12,146.11,0.3451664]
[1726883316058,49.25351779,146.12,146.11,0.3451664]
[1726883317154,47.54198,146.12,146.11,0.3451664]
[1726883317355,6.231,146.12,146.11,0.3451664]
[1726883317649,16.0993,146.15,146.11,0.3451664]
[1726883317840,7.08609778,146.16,146.11,0.3451664]
[1726883322544,1.71099995,146.15,146.11,0.3451664]
[1726883322969,7.08609778,146.16,146.11,0.3451664]
[1726883325755,1.71098918,146.15,146.11,0.3451664]
[1726883326143,0.12549,146.17,146.11,0.3451664]
[1726883326541,7.08069185,146.15,146.11,0.3451664]
[1726883326738,1.71098769,146.14,146.11,0.3451664]
[1726883330065,7.08069185,146.15,146.11,0.3451664]
[1726883330446,1.71111581,146.14,146.11,0.3451664]
[1726883333745,0.25098,146.13,146.11,0.3451664]
[1726883334068,1.96238109,146.12,146.11,0.3451664]
[1726883334867,41.31098,146.12,146.11,0.3451664]
[1726883336666,48.39287175,146.12,146.11,0.3451664]
[1726883341984,0.25098,146.11,146.05,0.3141043]
[1726883342263,0.25098,146.09,146.05,0.3141043]
[1726883342472,1.71184693,146.08,146.05,0.3141043]
[1726883342968,0.25098,146.1,146.05,0.3141043]
[1726883343163,1.71184407,146.09,146.05,0.3141043]
[1726883343870,1.71184364,146.08,146.05,0.3141043]
[1726883345068,41.06,146.09,146.05,0.3141043]
[1726883345370,1.96282249,146.08,146.05,0.3141043]
[1726883346174,0.25098,146.08,146.05,0.3141043]
[1726883346565,1.71198259,146.07,146.05,0.3141043]
[1726883347169,8.79097176,146.07,146.05,0.3141043]
[1726883348071,8.79097176,146.07,146.02,0.3451664]
[1726883348072,0.25098,146.03,146.02,0.3451664]
[1726883348564,20.0,146.06,146.02,0.3451664]
[1726883348771,0.12549,146.05,146.02,0.3451664]
[1726883348972,24.027864,146.06,146.02,0.3451664]
[1726883349271,0.25098,146.04,146.02,0.3451664]
[1726883349479,1.71250662,146.03,146.02,0.3451664]
[1726883349860,0.25098,146.05,146.02,0.3451664]
[1726883350175,1.71246114,146.04,146.02,0.3451664]
[1726883350377,0.25098,146.03,146.02,0.3451664]
[1726883351181,1.9636431,146.03,146.02,0.3451664]
[1726883351473,0.12549,146.05,146.02,0.3451664]
[1726883351776,0.25098,146.05,146.02,0.3451664]
[1726883352275,1.71246,146.04,146.02,0.3451664]
[1726883352466,1.71246,146.04,145.97,15.8300707]
[1726883352671,0.25098,146.03,145.97,15.8300707]
[1726883352850,0.25098,146.05,145.97,15.8300707]
[1726883354559,1.71257335,146.04,145.97,15.8300707]
[1726883354755,0.25098,146.03,145.97,15.8300707]
[1726883355973,0.25098,146.04,145.97,15.8300707]
[1726883356180,0.25098,146.02,145.97,15.8300707]
[1726883356363,0.25098,146.04,145.97,15.8300707]
[1726883356751,0.25098,146.05,145.97,15.8300707]
[1726883356956,7.09798,146.05,145.97,15.8300707]
[1726883357271,0.25098,146.03,145.97,15.8300707]
[1726883357779,0.25098,146.03,145.97,0.1592707]
[1726883358076,43.02376814,146.03,145.97,0.1592707]
[1726883358777,41.31098,146.03,145.97,0.1592707]
[1726883360966,0.25098,146.03,145.97,0.1592707]
[1726883361162,0.12549,146.03,145.97,0.1592707]
[1726883361664,7.07317645,146.04,145.97,14.14985086]
[1726883361976,7.07317645,146.04,145.97,12.77983767]
[1726883363684,7.07317645,146.04,145.97,0.1592707]
[1726883364386,1.71239091,146.03,145.97,0.1592707]
[1726883364877,0.25098,146.03,145.97,0.1592707]
[1726883365071,7.07317645,146.04,145.97,1.52931956]
[1726883366686,7.07317645,146.04,145.98,23.776884]
[1726883366988,7.07317645,146.04,145.99,13.99031802]
[1726883367578,1.43708263,146.13,146.03,12.62056697]
[1726883367579,15.6968,146.11,146.03,12.62056697]
[1726883367777,15.6968,146.11,146.04,12.62056697]
[1726883368004,7.06966696,146.09,146.04,12.62056697]
[1726883368891,7.06966696,146.09,146.03,36.39745097]
[1726883369189,7.06966696,146.09,146.01,6.1633]
[1726883369190,1.71170465,146.08,146.01,18.78386697]
[1726883369495,1.71170465,146.08,146.02,23.776884]
[1726883370496,7.06966696,146.09,146.02,23.776884]
[1726883370674,7.06966696,146.09,146.03,1.36943461]
[1726883371076,7.06966696,146.09,146.02,23.776884]
[1726883372468,7.06966696,146.09,146.04,23.776884]
[1726883372669,7.06966696,146.09,146.05,1.36921309]
[1726883372889,0.17021373,146.1,146.06,23.776884]
[1726883374592,0.17021373,146.1,146.03,19.70167149]
[1726883374784,1.71153492,146.09,146.02,0.12549]
[1726883374973,1.71153492,146.09,146.02,23.902374]
[1726883375696,1.88172772,146.1,146.02,23.902374]
[1726883376295,1.88172772,146.1,146.02,23.776884]
[1726883376495,0.17021373,146.1,146.02,23.776884]
[1726883378196,0.17021373,146.1,146.03,1.36935495]
[1726883378797,0.17021373,146.1,146.02,23.776884]
[1726883379096,0.25098,146.09,146.02,23.776884]
[1726883379271,1.71183646,146.08,146.02,23.776884]
[1726883380700,1.71183646,146.08,146.01,23.776884]
[1726883380881,0.25098,146.09,146.01,23.776884]
[1726883382401,0.25098,146.09,146.01,25.14641592]
[1726883382709,0.25098,146.09,146.01,23.776884]
[1726883382881,1.71194801,146.08,146.01,23.776884]
[1726883383081,0.25098,146.09,146.01,23.776884]
[1726883383498,8.75575828,146.08,146.01,23.776884]
[1726883389203,7.04393707,146.08,146.01,23.776884]
[1726883389904,7.04393707,146.08,146.02,12.60828158]
[1726883390600,1.71181791,146.07,146.02,12.60828158]
[1726883394607,7.04393707,146.08,146.02,12.60828158]
[1726883394812,7.04393707,146.08,146.04,12.60828158]
[1726883395110,7.04393707,146.08,146.04,13.97758339]
[1726883395891,7.04393707,146.08,146.04,12.60828158]
[1726883396610,7.04393707,146.08,146.03,23.776884]
[1726883397706,7.04393707,146.08,146.02,12.60828158]
[1726883397897,1.71165741,146.07,146.02,12.60828158]
[1726883398209,1.71165741,146.07,146.01,36.38516558]
[1726883399205,7.04393707,146.08,146.01,36.38516558]
[1726883399385,1.71180734,146.07,146.01,36.38516558]
[1726883399903,7.04393707,146.08,146.01,36.38516558]
[1726883400511,1.71180781,146.07,146.01,36.38516558]
[1726883401016,1.71180781,146.07,146.01,23.776884]
[1726883401320,1.71180781,146.07,146.01,36.38516558]
[1726883402208,1.71180781,146.07,146.01,12.60828158]
[1726883402615,7.0454973,146.06,145.99,12.60828158]
[1726883402816,1.71209525,146.05,145.99,12.60828158]
[1726883403122,17.27619525,146.05,145.98,12.71126675]
[1726883403418,0.25098,146.04,145.98,0.10298517]
[1726883404011,15.5641,146.05,146.0,12.60828158]
[1726883404189,15.5641,146.05,146.01,12.60828158]
[1726883404393,7.0454973,146.06,146.02,12.60828158]
[1726883404624,7.0454973,146.06,146.03,12.60828158]
[1726883406221,7.0454973,146.06,146.01,12.60828158]
[1726883406417,1.71189131,146.05,145.98,0.22847517]
[1726883406710,1.71189131,146.05,145.98,0.10298517]
[1726883406915,1.71189131,146.05,146.0,23.776884]
[1726883407521,7.0454973,146.06,146.0,23.776884]
[1726883410530,7.0454973,146.06,145.98,0.10298517]
[1726883410711,7.0454973,146.06,145.98,23.87986917]
[1726883411225,7.0454973,146.06,145.98,25.24964403]
[1726883411609,7.0454973,146.06,145.98,23.87986917]
[1726883413227,48.1654973,146.06,145.98,23.87986917]
[1726883416204,1.71207554,146.05,145.98,23.87986917]
[1726883416836,48.1654973,146.06,145.98,23.87986917]
[1726883418433,48.1654973,146.06,145.99,1.36976386]
[1726883418923,48.1654973,146.06,145.98,23.87986917]
[1726883419229,48.1654973,146.06,146.0,23.776884]
[1726883420621,1.71208663,146.05,146.0,23.776884]
[1726883421043,18.16768741,146.04,145.98,0.10298517]
[1726883421243,24.66908741,146.04,145.98,0.10298517]
[1726883421422,31.70904615,146.04,145.98,0.10298517]
[1726883422617,0.25098,146.03,145.98,0.10298517]
[1726883423021,71.11695874,146.04,145.98,0.10298517]
[1726883423341,29.99695874,146.04,145.98,0.10298517]
[1726883423524,23.49555874,146.04,145.99,23.776884]
[1726883423721,23.49555874,146.04,146.0,1.36966619]
[1726883424120,23.49555874,146.04,145.99,23.776884]
[1726883424619,23.49555874,146.04,145.98,0.10298517]
[1726883427431,23.49555874,146.04,145.99,23.776884]
[1726883428054,23.49555874,146.04,145.98,20.10298517]
[1726883428342,23.49555874,146.04,145.99,25.14654063]
[1726883428645,16.4556,146.04,145.99,25.14654063]
[1726883429627,16.4556,146.04,145.99,23.776884]
[1726883430329,1.71210495,146.03,145.99,23.776884]
[1726883430923,1.71210495,146.03,145.98,20.09482077]
[1726883431124,1.71210495,146.03,145.98,0.09482077]
[1726883431843,6.0249,146.03,145.98,0.09482077]
[1726883432048,1.71242722,146.02,145.98,0.09482077]
[1726883432232,6.0249,146.03,145.98,0.09482077]
[1726883432639,0.25098,146.02,145.98,0.09482077]
[1726883432836,1.71266445,146.01,145.98,0.09482077]
[1726883434144,0.25098,146.02,145.98,0.09482077]
[1726883437851,15.1267,146.01,145.98,0.09482077]
[1726883439375,7.04765011,146.0,145.98,0.09482077]
[1726883443551,48.16765011,146.0,145.98,0.09482077]
[1726883443755,0.12549,145.99,145.98,0.09482077]
[1726883444055,0.25098,145.99,145.98,0.09482077]
[1726883444450,47.50238,145.99,145.98,0.09482077]
[1726883445236,6.1314,145.99,145.98,0.09482077]
[1726883445952,47.2514,145.99,145.98,0.09482077]
[1726883446359,62.3781,145.99,145.98,0.09482077]
[1726883447035,62.62908,145.99,145.98,0.09482077]
[1726883448552,83.17908,145.99,145.98,0.09482077]
[1726883450053,90.02878,145.99,145.98,0.09482077]
[1726883451368,62.62908,145.99,145.98,0.09482077]
[1726883457857,113.805664,145.99,145.98,0.09482077]
[1726883460162,62.3781,145.99,145.98,0.09482077]
[1726883460663,64.09126601,145.99,145.98,0.09482077]
[1726883461562,64.34224601,145.99,145.98,0.09482077]
[1726883462165,88.11913001,145.99,145.98,0.09482077]
[1726883462368,86.405964,145.99,145.98,0.09482077]
[1726883462548,113.805664,145.99,145.98,0.09482077]
[1726883463861,56.2467,145.99,145.98,0.09482077]
[1726883464047,7.04765011,146.0,145.98,0.09482077]
[1726883464664,1.19174362,146.08,145.99,36.39399641]
[1726883464972,7.06364883,146.06,146.01,18.78421241]